[Event "Titled Tuesday Blitz August 3 2021"]
[White "Petesch, Gabriel"]
[Black "Skatchkov, Pavel"]
[WhiteFideId "2032465"]
[BlackFideId "4121848"]
[WhiteElo "2374"]
[BlackElo "2476"]
[Result "1-0"]
[Round "10"]
[TimeControl "180+1"]
[Date "2021.08.03"]
[WhiteClock "0:00:06"]
[BlackClock "0:00:08"]

1. e4 {[%clk 0:02:52]}  e5 {[%clk 0:02:59]} 2. Nf3 {[%clk 0:02:50]}  d5 {[%clk 0:02:59]} 3. d4 {[%clk 0:02:43]}  dxe4 {[%clk 0:02:59]} 4. Nxe5 {[%clk 0:02:42]}  Bd6 {[%clk 0:03:00]} 5. Nc4 {[%clk 0:02:39]}  Nc6 {[%clk 0:03:00]} 6. Nxd6+ {[%clk 0:02:32]}  Qxd6 {[%clk 0:03:01]} 7. c3 {[%clk 0:02:15]}  Nf6 {[%clk 0:02:58]} 8. Be2 {[%clk 0:02:12]}  Be6 {[%clk 0:02:54]} 9. Na3 {[%clk 0:02:08]}  h5 {[%clk 0:02:43]} 10. Nc4 {[%clk 0:01:54]}  Bxc4 {[%clk 0:02:39]} 11. Bxc4 {[%clk 0:01:53]}  O-O-O {[%clk 0:02:29]} 12. Qe2 {[%clk 0:01:43]}  Nd5 {[%clk 0:01:58]} 13. Be3 {[%clk 0:01:36]}  f5 {[%clk 0:01:56]} 14. O-O-O {[%clk 0:01:28]}  Nxe3 {[%clk 0:01:43]} 15. fxe3 {[%clk 0:01:28]}  g5 {[%clk 0:01:31]} 16. Rdf1 {[%clk 0:01:16]}  Rdf8 {[%clk 0:01:31]} 17. g3 {[%clk 0:01:11]}  h4 {[%clk 0:01:30]} 18. Qg2 {[%clk 0:01:06]}  h3 {[%clk 0:01:23]} 19. Qc2 {[%clk 0:00:51]}  Kb8 {[%clk 0:01:12]} 20. Rf2 {[%clk 0:00:46]}  f4 {[%clk 0:01:06]} 21. gxf4 {[%clk 0:00:35]}  gxf4 {[%clk 0:01:06]} 22. Qxe4 {[%clk 0:00:34]}  Re8 {[%clk 0:00:17]} 23. Qxf4 {[%clk 0:00:33]}  Qe7 {[%clk 0:00:18]} 24. Rhf1 {[%clk 0:00:27]}  a6 {[%clk 0:00:15]} 25. e4 {[%clk 0:00:24]}  Rh4 {[%clk 0:00:14]} 26. Qf7 {[%clk 0:00:15]}  Rxe4 {[%clk 0:00:08]} 27. Qxe7 {[%clk 0:00:14]}  R8xe7 {[%clk 0:00:09]} 28. Bd5 {[%clk 0:00:12]}  Re2 {[%clk 0:00:08]} 29. Bxc6 {[%clk 0:00:08]}  b6 {[%clk 0:00:08]} 30. Rf8+ {[%clk 0:00:07]}  Ka7 {[%clk 0:00:08]} 31. Ra8# {[%clk 0:00:06]} 1-0


[Site "https://www.chess.com"]

[Event "Titled Tuesday Blitz August 3 2021"]
[White "Quispe Arteaga, Gabriel"]
[Black "Nozdrachev, Leonid"]
[WhiteFideId "32059809"]
[BlackFideId "24113433"]
[WhiteElo "2172"]
[BlackElo "2221"]
[Result "1/2-1/2"]
[Round "10"]
[TimeControl "180+1"]
[Date "2021.08.03"]
[WhiteClock "0:00:11"]
[BlackClock "0:00:03"]

1. d4 {[%clk 0:03:00]}  d6 {[%clk 0:02:36]} 2. c4 {[%clk 0:03:00]}  e5 {[%clk 0:02:35]} 3. g3 {[%clk 0:02:47]}  Nc6 {[%clk 0:02:27]} 4. d5 {[%clk 0:02:40]}  Nb8 {[%clk 0:02:24]} 5. Nc3 {[%clk 0:02:40]}  f5 {[%clk 0:02:23]} 6. e4 {[%clk 0:02:36]}  Nf6 {[%clk 0:02:23]} 7. Bd3 {[%clk 0:02:35]}  fxe4 {[%clk 0:02:21]} 8. Nxe4 {[%clk 0:02:35]}  Be7 {[%clk 0:02:20]} 9. Qc2 {[%clk 0:01:52]}  Nbd7 {[%clk 0:02:13]} 10. Ng5 {[%clk 0:01:49]}  Nf8 {[%clk 0:02:12]} 11. Ne2 {[%clk 0:01:41]}  Bg4 {[%clk 0:02:09]} 12. f4 {[%clk 0:01:26]}  c6 {[%clk 0:02:04]} 13. O-O {[%clk 0:01:15]}  cxd5 {[%clk 0:02:02]} 14. cxd5 {[%clk 0:01:08]}  Rc8 {[%clk 0:02:02]} 15. Qa4+ {[%clk 0:01:03]}  Bd7 {[%clk 0:01:58]} 16. Qxa7 {[%clk 0:01:00]}  h6 {[%clk 0:01:58]} 17. fxe5 {[%clk 0:00:50]}  dxe5 {[%clk 0:01:43]} 18. Be3 {[%clk 0:00:25]}  hxg5 {[%clk 0:01:42]} 19. Rad1 {[%clk 0:00:18]}  Ng4 {[%clk 0:01:40]} 20. d6 {[%clk 0:00:17]}  Bxd6 {[%clk 0:01:31]} 21. Bg6+ {[%clk 0:00:17]}  Nxg6 {[%clk 0:01:30]} 22. Rxd6 {[%clk 0:00:18]}  Nf6 {[%clk 0:01:08]} 23. Bxg5 {[%clk 0:00:18]}  Qc7 {[%clk 0:01:04]} 24. Rfd1 {[%clk 0:00:15]}  Bg4 {[%clk 0:00:58]} 25. Bxf6 {[%clk 0:00:08]}  Bxe2 {[%clk 0:00:50]} 26. Qa4+ {[%clk 0:00:05]}  b5 {[%clk 0:00:46]} 27. Qe4 {[%clk 0:00:05]}  Qc5+ {[%clk 0:00:26]} 28. Kg2 {[%clk 0:00:05]}  Bh5 {[%clk 0:00:17]} 29. Bg5 {[%clk 0:00:02]}  Qc2+ {[%clk 0:00:15]} 30. Qxc2 {[%clk 0:00:01]}  Rxc2+ {[%clk 0:00:15]} 31. R1d2 {[%clk 0:00:02]}  Rxd2+ {[%clk 0:00:15]} 32. Rxd2 {[%clk 0:00:03]}  Kf7 {[%clk 0:00:13]} 33. h3 {[%clk 0:00:04]}  Nf8 {[%clk 0:00:11]} 34. Rf2+ {[%clk 0:00:03]}  Ke6 {[%clk 0:00:09]} 35. g4 {[%clk 0:00:04]}  Bg6 {[%clk 0:00:08]} 36. b3 {[%clk 0:00:05]}  Be4+ {[%clk 0:00:08]} 37. Kg3 {[%clk 0:00:05]}  Ng6 {[%clk 0:00:07]} 38. h4 {[%clk 0:00:06]}  Bd5 {[%clk 0:00:07]} 39. h5 {[%clk 0:00:06]}  Ne7 {[%clk 0:00:06]} 40. Rd2 {[%clk 0:00:03]}  Nc6 {[%clk 0:00:06]} 41. Be3 {[%clk 0:00:02]}  Rf8 {[%clk 0:00:05]} 42. Kh4 {[%clk 0:00:02]}  Rf3 {[%clk 0:00:05]} 43. Bc5 {[%clk 0:00:02]}  e4 {[%clk 0:00:04]} 44. Kg5 {[%clk 0:00:02]}  Ne5 {[%clk 0:00:04]} 45. Bd4 {[%clk 0:00:03]}  Rd3 {[%clk 0:00:03]} 46. Rxd3 {[%clk 0:00:02]}  exd3 {[%clk 0:00:03]} 47. Be3 {[%clk 0:00:01]}  Nf3+ {[%clk 0:00:03]} 48. Kf4 {[%clk 0:00:02]}  d2 {[%clk 0:00:03]} 49. Bxd2 {[%clk 0:00:03]}  Nxd2 {[%clk 0:00:03]} 50. g5 {[%clk 0:00:03]}  Nb1 {[%clk 0:00:01]} 51. h6 {[%clk 0:00:04]}  gxh6 {[%clk 0:00:01]} 52. gxh6 {[%clk 0:00:05]}  Kf7 {[%clk 0:00:02]} 53. a4 {[%clk 0:00:06]}  bxa4 {[%clk 0:00:01]} 54. bxa4 {[%clk 0:00:07]}  Nc3 {[%clk 0:00:01]} 55. Ke5 {[%clk 0:00:07]}  Bb3 {[%clk 0:00:01]} 56. a5 {[%clk 0:00:06]}  Bc4 {[%clk 0:00:01]} 57. Kd4 {[%clk 0:00:06]}  Ba6 {[%clk 0:00:01]} 58. Kxc3 {[%clk 0:00:06]}  Kg6 {[%clk 0:00:01]} 59. Kd4 {[%clk 0:00:07]}  Kxh6 {[%clk 0:00:02]} 60. Kd5 {[%clk 0:00:08]}  Bf1 {[%clk 0:00:02]} 61. Kc6 {[%clk 0:00:09]}  Be2 {[%clk 0:00:02]} 62. Kb6 {[%clk 0:00:10]}  Bf1 {[%clk 0:00:03]} 63. a6 {[%clk 0:00:11]}  Bxa6 {[%clk 0:00:03]} 1/2-1/2


[Site "https://www.chess.com"]

[Event "Titled Tuesday Blitz August 3 2021"]
[White "Quparadze, Giga"]
[Black "Costachi, Mihnea"]
[WhiteFideId "13602250"]
[BlackFideId "1217518"]
[WhiteElo "2658"]
[BlackElo "2482"]
[Result "1-0"]
[Round "10"]
[TimeControl "180+1"]
[Date "2021.08.03"]
[WhiteClock "0:01:39"]
[BlackClock "0:00:50"]

1. e4 {[%clk 0:03:00]}  e5 {[%clk 0:02:59]} 2. Nf3 {[%clk 0:03:00]}  Nc6 {[%clk 0:02:57]} 3. Bb5 {[%clk 0:03:00]}  a6 {[%clk 0:02:58]} 4. Ba4 {[%clk 0:03:00]}  d6 {[%clk 0:02:59]} 5. c3 {[%clk 0:03:00]}  Bd7 {[%clk 0:02:59]} 6. d4 {[%clk 0:03:00]}  g6 {[%clk 0:02:59]} 7. O-O {[%clk 0:02:55]}  Bg7 {[%clk 0:02:59]} 8. Be3 {[%clk 0:02:55]}  Nf6 {[%clk 0:02:59]} 9. dxe5 {[%clk 0:02:55]}  Nxe5 {[%clk 0:02:56]} 10. Bxd7+ {[%clk 0:02:54]}  Nfxd7 {[%clk 0:02:51]} 11. Nbd2 {[%clk 0:02:52]}  O-O {[%clk 0:02:50]} 12. Qc2 {[%clk 0:02:50]}  Nxf3+ {[%clk 0:02:47]} 13. Nxf3 {[%clk 0:02:51]}  Ne5 {[%clk 0:02:48]} 14. Nxe5 {[%clk 0:02:46]}  Bxe5 {[%clk 0:02:49]} 15. Bd4 {[%clk 0:02:38]}  Qf6 {[%clk 0:02:42]} 16. Bxe5 {[%clk 0:02:36]}  Qxe5 {[%clk 0:02:41]} 17. f4 {[%clk 0:02:34]}  Qc5+ {[%clk 0:02:40]} 18. Qf2 {[%clk 0:02:26]}  Qxf2+ {[%clk 0:02:40]} 19. Kxf2 {[%clk 0:02:27]}  f5 {[%clk 0:02:31]} 20. Rae1 {[%clk 0:02:24]}  fxe4 {[%clk 0:02:28]} 21. Rxe4 {[%clk 0:02:25]}  Rae8 {[%clk 0:02:29]} 22. Rfe1 {[%clk 0:02:25]}  Rxe4 {[%clk 0:02:29]} 23. Rxe4 {[%clk 0:02:26]}  Kf7 {[%clk 0:02:30]} 24. Kf3 {[%clk 0:02:26]}  d5 {[%clk 0:02:28]} 25. Re5 {[%clk 0:02:26]}  Rd8 {[%clk 0:02:28]} 26. Ke3 {[%clk 0:02:21]}  c5 {[%clk 0:02:29]} 27. g4 {[%clk 0:02:20]}  b6 {[%clk 0:02:27]} 28. Kd3 {[%clk 0:02:17]}  h6 {[%clk 0:02:20]} 29. h4 {[%clk 0:02:17]}  d4 {[%clk 0:02:17]} 30. h5 {[%clk 0:02:04]}  gxh5 {[%clk 0:02:09]} 31. Rxh5 {[%clk 0:02:02]}  dxc3+ {[%clk 0:02:07]} 32. Kxc3 {[%clk 0:02:02]}  Kg6 {[%clk 0:02:08]} 33. f5+ {[%clk 0:01:59]}  Kg7 {[%clk 0:02:07]} 34. g5 {[%clk 0:01:59]}  hxg5 {[%clk 0:02:07]} 35. Rxg5+ {[%clk 0:02:00]}  Kf7 {[%clk 0:02:00]} 36. Rg6 {[%clk 0:02:00]}  Rb8 {[%clk 0:01:56]} 37. Kc4 {[%clk 0:02:00]}  Ke7 {[%clk 0:01:45]} 38. Kd5 {[%clk 0:02:00]}  Kf7 {[%clk 0:01:45]} 39. Rc6 {[%clk 0:01:58]}  Ke7 {[%clk 0:01:41]} 40. Ke5 {[%clk 0:01:45]}  Kd7 {[%clk 0:01:39]} 41. Re6 {[%clk 0:01:45]}  c4 {[%clk 0:01:26]} 42. f6 {[%clk 0:01:45]}  b5 {[%clk 0:01:15]} 43. Re7+ {[%clk 0:01:44]}  Kd8 {[%clk 0:01:15]} 44. Rh7 {[%clk 0:01:42]}  Rb6 {[%clk 0:00:49]} 45. Rh8+ {[%clk 0:01:40]}  Kd7 {[%clk 0:00:49]} 46. f7 {[%clk 0:01:40]}  Re6+ {[%clk 0:00:49]} 47. Kd5 {[%clk 0:01:40]}  Rf6 {[%clk 0:00:49]} 48. f8=Q {[%clk 0:01:39]}  Rxf8 {[%clk 0:00:50]} 49. Rxf8 {[%clk 0:01:39]}  c3 {[%clk 0:00:50]} 50. bxc3 {[%clk 0:01:39]} 1-0


[Site "https://www.chess.com"]

[Event "Titled Tuesday Blitz August 3 2021"]
[White "Rosenberg, Evan S"]
[Black "Babiy, Olga"]
[WhiteFideId "2019299"]
[BlackFideId "14117258"]
[WhiteElo "2381"]
[BlackElo "2230"]
[Result "0-1"]
[Round "10"]
[TimeControl "180+1"]
[Date "2021.08.03"]
[WhiteClock "0:00:06"]
[BlackClock "0:00:13"]

1. Nf3 {[%clk 0:03:00]}  d6 {[%clk 0:02:58]} 2. d4 {[%clk 0:03:00]}  Bg4 {[%clk 0:02:55]} 3. c4 {[%clk 0:02:55]}  Bxf3 {[%clk 0:02:53]} 4. gxf3 {[%clk 0:02:53]}  Nd7 {[%clk 0:02:54]} 5. Qb3 {[%clk 0:02:51]}  Rb8 {[%clk 0:02:44]} 6. Nc3 {[%clk 0:02:35]}  c6 {[%clk 0:02:39]} 7. Bf4 {[%clk 0:02:23]}  e5 {[%clk 0:02:36]} 8. dxe5 {[%clk 0:02:18]}  dxe5 {[%clk 0:02:37]} 9. Bg3 {[%clk 0:02:17]}  Qc7 {[%clk 0:02:32]} 10. O-O-O {[%clk 0:02:00]}  Ngf6 {[%clk 0:02:31]} 11. Ne4 {[%clk 0:01:51]}  a5 {[%clk 0:01:50]} 12. Bh3 {[%clk 0:01:40]}  Nc5 {[%clk 0:01:36]} 13. Qe3 {[%clk 0:01:11]}  Nfxe4 {[%clk 0:01:29]} 14. fxe4 {[%clk 0:01:12]}  Be7 {[%clk 0:01:24]} 15. Kb1 {[%clk 0:01:01]}  b5 {[%clk 0:00:57]} 16. Bh4 {[%clk 0:00:44]}  bxc4 {[%clk 0:00:50]} 17. Bxe7 {[%clk 0:00:43]}  Qxe7 {[%clk 0:00:51]} 18. Qa3 {[%clk 0:00:38]}  Nxe4 {[%clk 0:00:26]} 19. Qxe7+ {[%clk 0:00:35]}  Kxe7 {[%clk 0:00:27]} 20. Rd7+ {[%clk 0:00:34]}  Kf6 {[%clk 0:00:27]} 21. Kc2 {[%clk 0:00:24]}  Rhd8 {[%clk 0:00:24]} 22. Rhd1 {[%clk 0:00:21]}  Rxd7 {[%clk 0:00:22]} 23. Bxd7 {[%clk 0:00:20]}  Rb6 {[%clk 0:00:14]} 24. f3 {[%clk 0:00:19]}  Nc5 {[%clk 0:00:14]} 25. Bh3 {[%clk 0:00:16]}  Ne6 {[%clk 0:00:14]} 26. Rd6 {[%clk 0:00:14]}  Ke7 {[%clk 0:00:14]} 27. Rd1 {[%clk 0:00:13]}  Nd4+ {[%clk 0:00:14]} 28. Kb1 {[%clk 0:00:12]}  c3 {[%clk 0:00:13]} 29. Rc1 {[%clk 0:00:10]}  Rxb2+ {[%clk 0:00:13]} 30. Ka1 {[%clk 0:00:10]}  Nc2+ {[%clk 0:00:14]} 31. Rxc2 {[%clk 0:00:10]}  Rxc2 {[%clk 0:00:15]} 32. Bf5 {[%clk 0:00:10]}  Rxe2 {[%clk 0:00:15]} 33. a4 {[%clk 0:00:09]}  Kd6 {[%clk 0:00:15]} 34. Bxh7 {[%clk 0:00:09]}  Kc5 {[%clk 0:00:15]} 35. Bd3 {[%clk 0:00:08]}  Rd2 {[%clk 0:00:15]} 36. Be4 {[%clk 0:00:08]}  Kb4 {[%clk 0:00:15]} 37. Kb1 {[%clk 0:00:09]}  Kb3 {[%clk 0:00:14]} 38. Kc1 {[%clk 0:00:08]}  Rxh2 {[%clk 0:00:13]} 39. Kd1 {[%clk 0:00:07]}  c2+ {[%clk 0:00:13]} 40. Bxc2+ {[%clk 0:00:06]}  Rxc2 {[%clk 0:00:13]} 0-1


[Site "https://www.chess.com"]

[Event "Titled Tuesday Blitz August 3 2021"]
[White "Rusan, Paul-Cristian"]
[Black "Ilyasli, Ughur"]
[WhiteFideId "1209191"]
[BlackFideId "13416197"]
[WhiteElo "2167"]
[BlackElo "2051"]
[Result "1-0"]
[Round "10"]
[TimeControl "180+1"]
[Date "2021.08.03"]
[WhiteClock "0:00:30"]
[BlackClock "0:00:01"]

1. e4 {[%clk 0:02:59]}  c5 {[%clk 0:03:00]} 2. b4 {[%clk 0:02:58]}  cxb4 {[%clk 0:03:00]} 3. Bb2 {[%clk 0:02:49]}  d5 {[%clk 0:02:59]} 4. exd5 {[%clk 0:02:46]}  Qxd5 {[%clk 0:02:59]} 5. d4 {[%clk 0:02:46]}  Nc6 {[%clk 0:02:58]} 6. c4 {[%clk 0:02:46]}  bxc3 {[%clk 0:02:49]} 7. Nxc3 {[%clk 0:02:46]}  Qxd4 {[%clk 0:02:48]} 8. Nd5 {[%clk 0:02:45]}  Bg4 {[%clk 0:01:41]} 9. Bxd4 {[%clk 0:01:46]}  Bxd1 {[%clk 0:01:40]} 10. Rxd1 {[%clk 0:01:40]}  O-O-O {[%clk 0:01:36]} 11. Bc3 {[%clk 0:01:25]}  e6 {[%clk 0:01:25]} 12. Ne3 {[%clk 0:01:25]}  Rxd1+ {[%clk 0:01:22]} 13. Kxd1 {[%clk 0:01:25]}  Nf6 {[%clk 0:01:21]} 14. Nf3 {[%clk 0:01:20]}  Ne4 {[%clk 0:01:17]} 15. Be1 {[%clk 0:01:19]}  Bc5 {[%clk 0:01:15]} 16. Bd3 {[%clk 0:01:17]}  Rd8 {[%clk 0:01:12]} 17. Ke2 {[%clk 0:01:18]}  Nf6 {[%clk 0:01:05]} 18. Bc3 {[%clk 0:01:15]}  Bxe3 {[%clk 0:00:52]} 19. Bxf6 {[%clk 0:01:14]}  gxf6 {[%clk 0:00:40]} 20. Kxe3 {[%clk 0:01:14]}  h5 {[%clk 0:00:37]} 21. h4 {[%clk 0:01:13]}  Nb4 {[%clk 0:00:30]} 22. Bb1 {[%clk 0:01:01]}  Nd5+ {[%clk 0:00:25]} 23. Ke4 {[%clk 0:00:56]}  Nc3+ {[%clk 0:00:18]} 24. Kf4 {[%clk 0:00:56]}  Rg8 {[%clk 0:00:07]} 25. Rc1 {[%clk 0:00:53]}  Rg4+ {[%clk 0:00:03]} 26. Ke3 {[%clk 0:00:53]}  Rc4 {[%clk 0:00:04]} 27. Kd3 {[%clk 0:00:53]}  Nxb1 {[%clk 0:00:02]} 28. Rxc4+ {[%clk 0:00:49]}  Kd7 {[%clk 0:00:02]} 29. Ra4 {[%clk 0:00:39]}  Na3 {[%clk 0:00:02]} 30. Rxa3 {[%clk 0:00:38]}  a6 {[%clk 0:00:03]} 31. Nd4 {[%clk 0:00:37]}  Kd6 {[%clk 0:00:04]} 32. Rc3 {[%clk 0:00:36]}  b5 {[%clk 0:00:04]} 33. a4 {[%clk 0:00:36]}  b4 {[%clk 0:00:04]} 34. Rc6+ {[%clk 0:00:36]}  Kd5 {[%clk 0:00:04]} 35. Rxa6 {[%clk 0:00:36]}  e5 {[%clk 0:00:04]} 36. Ra5+ {[%clk 0:00:36]}  Kd6 {[%clk 0:00:03]} 37. Nf5+ {[%clk 0:00:35]}  Ke6 {[%clk 0:00:04]} 38. Ke4 {[%clk 0:00:35]}  b3 {[%clk 0:00:03]} 39. Rb5 {[%clk 0:00:35]}  b2 {[%clk 0:00:03]} 40. Rxb2 {[%clk 0:00:35]}  Kd7 {[%clk 0:00:03]} 41. Rb6 {[%clk 0:00:34]}  Ke8 {[%clk 0:00:02]} 42. Rxf6 {[%clk 0:00:33]}  Kf8 {[%clk 0:00:02]} 43. a5 {[%clk 0:00:32]}  Kg8 {[%clk 0:00:03]} 44. a6 {[%clk 0:00:32]}  Kh8 {[%clk 0:00:01]} 45. Rxf7 {[%clk 0:00:30]}  Kg8 {[%clk 0:00:01]} 46. Nd6 {[%clk 0:00:30]} 1-0


[Site "https://www.chess.com"]

[Event "Titled Tuesday Blitz August 3 2021"]
[White "Sadykov, Ramil"]
[Black "Adelman, Charles"]
[WhiteFideId "24113590"]
[BlackFideId "2003597"]
[WhiteElo "2300"]
[BlackElo "2357"]
[Result "0-1"]
[Round "10"]
[TimeControl "180+1"]
[Date "2021.08.03"]
[WhiteClock "0:00:01"]
[BlackClock "0:00:23"]

1. d4 {[%clk 0:02:57]}  Nf6 {[%clk 0:02:59]} 2. Nc3 {[%clk 0:02:56]}  d6 {[%clk 0:02:58]} 3. e4 {[%clk 0:02:55]}  Nbd7 {[%clk 0:02:58]} 4. f4 {[%clk 0:02:51]}  e5 {[%clk 0:02:58]} 5. Nf3 {[%clk 0:02:52]}  exd4 {[%clk 0:02:57]} 6. Nxd4 {[%clk 0:02:49]}  g6 {[%clk 0:02:58]} 7. g3 {[%clk 0:02:45]}  Bg7 {[%clk 0:02:57]} 8. Bg2 {[%clk 0:02:46]}  O-O {[%clk 0:02:56]} 9. O-O {[%clk 0:02:46]}  Re8 {[%clk 0:02:55]} 10. Nb3 {[%clk 0:02:40]}  a5 {[%clk 0:02:47]} 11. a4 {[%clk 0:02:32]}  Nb6 {[%clk 0:02:47]} 12. h3 {[%clk 0:02:30]}  Bd7 {[%clk 0:02:47]} 13. Nd4 {[%clk 0:02:23]}  Rb8 {[%clk 0:02:34]} 14. Kh2 {[%clk 0:02:17]}  Bc6 {[%clk 0:02:31]} 15. Nxc6 {[%clk 0:02:16]}  bxc6 {[%clk 0:02:31]} 16. e5 {[%clk 0:02:13]}  dxe5 {[%clk 0:02:28]} 17. Bxc6 {[%clk 0:02:09]}  Re6 {[%clk 0:02:21]} 18. Qf3 {[%clk 0:01:40]}  exf4 {[%clk 0:02:04]} 19. Bxf4 {[%clk 0:01:40]}  Nh5 {[%clk 0:01:58]} 20. Rad1 {[%clk 0:01:35]}  Qe7 {[%clk 0:01:57]} 21. Bc1 {[%clk 0:00:58]}  Be5 {[%clk 0:01:54]} 22. Ne2 {[%clk 0:00:56]}  Rf8 {[%clk 0:01:40]} 23. Kg2 {[%clk 0:00:55]}  Bd6 {[%clk 0:01:39]} 24. Bb5 {[%clk 0:00:54]}  Rf6 {[%clk 0:01:28]} 25. Qe3 {[%clk 0:00:46]}  Re6 {[%clk 0:01:22]} 26. Qf3 {[%clk 0:00:45]}  Rf6 {[%clk 0:01:04]} 27. Qg4 {[%clk 0:00:45]}  Rxf1 {[%clk 0:01:02]} 28. Rxf1 {[%clk 0:00:46]}  c6 {[%clk 0:00:59]} 29. Bxc6 {[%clk 0:00:41]}  Rc8 {[%clk 0:00:46]} 30. Bg5 {[%clk 0:00:27]}  f6 {[%clk 0:00:36]} 31. Bd5+ {[%clk 0:00:16]}  Nxd5 {[%clk 0:00:35]} 32. Qxc8+ {[%clk 0:00:16]}  Kg7 {[%clk 0:00:35]} 33. Nd4 {[%clk 0:00:10]}  Qe4+ {[%clk 0:00:29]} 34. Rf3 {[%clk 0:00:09]}  Qxd4 {[%clk 0:00:25]} 35. Qd7+ {[%clk 0:00:05]}  Be7 {[%clk 0:00:25]} 36. Bc1 {[%clk 0:00:01]}  Ne3+ {[%clk 0:00:23]} 0-1


[Site "https://www.chess.com"]

[Event "Titled Tuesday Blitz August 3 2021"]
[White "Sarkar, Justin"]
[Black "Silva, Miguel Antonio Neto"]
[WhiteFideId "2010011"]
[BlackFideId "1911929"]
[WhiteElo "2072"]
[BlackElo "2283"]
[Result "0-1"]
[Round "10"]
[TimeControl "180+1"]
[Date "2021.08.03"]
[WhiteClock "0:00:01"]
[BlackClock "0:01:09"]

1. e4 {[%clk 0:02:55]}  e5 {[%clk 0:02:55]} 2. Bc4 {[%clk 0:02:51]}  Nf6 {[%clk 0:02:53]} 3. d3 {[%clk 0:02:51]}  Nc6 {[%clk 0:02:53]} 4. h3 {[%clk 0:01:51]}  Na5 {[%clk 0:02:51]} 5. Qf3 {[%clk 0:01:39]}  h6 {[%clk 0:02:43]} 6. Ne2 {[%clk 0:01:35]}  Nxc4 {[%clk 0:02:34]} 7. dxc4 {[%clk 0:01:35]}  Bc5 {[%clk 0:02:25]} 8. Ng3 {[%clk 0:01:19]}  d6 {[%clk 0:02:25]} 9. Nf5 {[%clk 0:01:13]}  Bxf5 {[%clk 0:02:23]} 10. Qxf5 {[%clk 0:01:12]}  Qd7 {[%clk 0:02:20]} 11. Qf3 {[%clk 0:00:48]}  Qc6 {[%clk 0:02:15]} 12. Nd2 {[%clk 0:00:45]}  a5 {[%clk 0:02:10]} 13. O-O {[%clk 0:00:33]}  Ba7 {[%clk 0:01:58]} 14. Re1 {[%clk 0:00:26]}  O-O-O {[%clk 0:01:52]} 15. c3 {[%clk 0:00:16]}  Rdf8 {[%clk 0:01:51]} 16. b4 {[%clk 0:00:15]}  Nh7 {[%clk 0:01:46]} 17. bxa5 {[%clk 0:00:12]}  Ng5 {[%clk 0:01:43]} 18. Qe2 {[%clk 0:00:12]}  f5 {[%clk 0:01:36]} 19. exf5 {[%clk 0:00:11]}  Rxf5 {[%clk 0:01:35]} 20. c5 {[%clk 0:00:04]}  Bxc5 {[%clk 0:01:33]} 21. Qg4 {[%clk 0:00:03]}  Rf8 {[%clk 0:01:26]} 22. Ne4 {[%clk 0:00:03]}  Nxe4 {[%clk 0:01:25]} 23. Rxe4 {[%clk 0:00:03]}  Kb8 {[%clk 0:01:22]} 24. Be3 {[%clk 0:00:02]}  Bxe3 {[%clk 0:01:21]} 25. Rxe3 {[%clk 0:00:02]}  Rxf2 {[%clk 0:01:19]} 26. Qxg7 {[%clk 0:00:02]}  R8f6 {[%clk 0:01:14]} 27. Rae1 {[%clk 0:00:01]}  Qc5 {[%clk 0:01:09]} 0-1


[Site "https://www.chess.com"]

[Event "Titled Tuesday Blitz August 3 2021"]
[White "Shyaamnikhil P"]
[Black "Egorov, Evgeny"]
[WhiteFideId "5024218"]
[BlackFideId "13700421"]
[WhiteElo "2300"]
[BlackElo "2422"]
[Result "0-1"]
[Round "10"]
[TimeControl "180+1"]
[Date "2021.08.03"]
[WhiteClock "0:02:04"]
[BlackClock "0:01:38"]

1. e3 {[%clk 0:03:00]}  e5 {[%clk 0:02:58]} 2. c4 {[%clk 0:02:57]}  Nc6 {[%clk 0:02:56]} 3. Nc3 {[%clk 0:02:57]}  Nf6 {[%clk 0:02:56]} 4. g4 {[%clk 0:02:56]}  h6 {[%clk 0:02:47]} 5. h3 {[%clk 0:02:55]}  d5 {[%clk 0:02:45]} 6. cxd5 {[%clk 0:02:50]}  Nxd5 {[%clk 0:02:45]} 7. a3 {[%clk 0:02:46]}  Nxc3 {[%clk 0:02:40]} 8. bxc3 {[%clk 0:02:45]}  Qd5 {[%clk 0:02:35]} 9. d3 {[%clk 0:02:38]}  Qxh1 {[%clk 0:02:32]} 10. Nf3 {[%clk 0:02:36]}  Bd6 {[%clk 0:02:19]} 11. Qe2 {[%clk 0:02:34]}  O-O {[%clk 0:02:15]} 12. e4 {[%clk 0:02:33]}  b5 {[%clk 0:02:01]} 13. Be3 {[%clk 0:02:30]}  a5 {[%clk 0:02:00]} 14. Kd2 {[%clk 0:02:25]}  Be6 {[%clk 0:01:55]} 15. Nh4 {[%clk 0:02:13]}  b4 {[%clk 0:01:45]} 16. c4 {[%clk 0:02:10]}  bxa3 {[%clk 0:01:43]} 17. c5 {[%clk 0:02:10]}  Be7 {[%clk 0:01:41]} 18. Nf3 {[%clk 0:02:04]}  Rab8 {[%clk 0:01:38]} 0-1


[Site "https://www.chess.com"]

[Event "Titled Tuesday Blitz August 3 2021"]
[White "Song, Michael"]
[Black "Ivanchuk, Vasyl"]
[WhiteFideId "2613190"]
[BlackFideId "14100010"]
[WhiteElo "2274"]
[BlackElo "2710"]
[Result "0-1"]
[Round "10"]
[TimeControl "180+1"]
[Date "2021.08.03"]
[WhiteClock "0:01:42"]
[BlackClock "0:00:28"]

1. d4 {[%clk 0:03:00]}  d5 {[%clk 0:02:44]} 2. c4 {[%clk 0:03:00]}  Nc6 {[%clk 0:02:43]} 3. Nf3 {[%clk 0:02:57]}  Bg4 {[%clk 0:02:42]} 4. cxd5 {[%clk 0:02:50]}  Bxf3 {[%clk 0:02:42]} 5. gxf3 {[%clk 0:02:49]}  Qxd5 {[%clk 0:02:42]} 6. e3 {[%clk 0:02:48]}  e6 {[%clk 0:02:42]} 7. Nc3 {[%clk 0:02:48]}  Qh5 {[%clk 0:02:42]} 8. f4 {[%clk 0:02:47]}  Qxd1+ {[%clk 0:02:41]} 9. Kxd1 {[%clk 0:02:47]}  O-O-O {[%clk 0:02:37]} 10. Bg2 {[%clk 0:02:45]}  Nce7 {[%clk 0:02:33]} 11. Ke2 {[%clk 0:02:44]}  Nf6 {[%clk 0:02:30]} 12. Bd2 {[%clk 0:02:43]}  Nf5 {[%clk 0:02:28]} 13. Rhc1 {[%clk 0:02:40]}  Kb8 {[%clk 0:02:19]} 14. b4 {[%clk 0:02:39]}  h6 {[%clk 0:02:13]} 15. b5 {[%clk 0:02:32]}  g5 {[%clk 0:02:12]} 16. fxg5 {[%clk 0:02:22]}  hxg5 {[%clk 0:02:12]} 17. h3 {[%clk 0:02:23]}  Nh4 {[%clk 0:02:00]} 18. Bf1 {[%clk 0:02:23]}  Ba3 {[%clk 0:01:44]} 19. Rc2 {[%clk 0:02:22]}  Rhe8 {[%clk 0:01:36]} 20. Rb1 {[%clk 0:02:10]}  e5 {[%clk 0:01:31]} 21. Rb3 {[%clk 0:02:09]}  exd4 {[%clk 0:01:28]} 22. Rxa3 {[%clk 0:02:07]}  d3+ {[%clk 0:01:28]} 23. Kd1 {[%clk 0:02:03]}  dxc2+ {[%clk 0:01:28]} 24. Kxc2 {[%clk 0:02:03]}  Re5 {[%clk 0:01:20]} 25. Ra4 {[%clk 0:02:01]}  Rf5 {[%clk 0:01:04]} 26. f4 {[%clk 0:01:57]}  gxf4 {[%clk 0:01:03]} 27. exf4 {[%clk 0:01:57]}  Nd5 {[%clk 0:00:48]} 28. Rd4 {[%clk 0:01:47]}  Nf3 {[%clk 0:00:46]} 29. Rxd5 {[%clk 0:01:42]}  Rfxd5 {[%clk 0:00:42]} 30. Nxd5 {[%clk 0:01:43]}  Nxd2 {[%clk 0:00:29]} 31. Bg2 {[%clk 0:01:42]}  Rg8 {[%clk 0:00:28]} 0-1


[Site "https://www.chess.com"]